bitfinex/quotes_SOLUSD_20251208
["timestamp","ask_amount","ask_price","bid_price","bid_amount"]
[1765188231847,0.72,138.57,138.54,7.93813194]
[1765188232047,0.72,138.57,138.53,25.26487717]
[1765188232247,0.72,138.57,138.53,25.98487717]
[1765188232845,0.72,138.57,138.53,25.26487717]
[1765188233043,0.72,138.57,138.53,25.98487717]
[1765188233539,4.67017727,138.55,138.53,7.21865299]
[1765188233763,4.67017727,138.55,138.52,7.21908792]
[1765188234067,5.39017727,138.59,138.54,7.21813194]
[1765188234359,8.72,138.59,138.54,11.88830921]
[1765188234560,8.72,138.59,138.55,0.72]
[1765188234764,0.72,138.59,138.55,0.72]
[1765188236168,0.72,138.59,138.56,7.21709006]
[1765188238064,4.67017727,138.61,138.57,0.66]
[1765188238252,0.67,138.6,138.56,25.91981523]
[1765188239349,0.67,138.6,138.56,34.04501945]
[1765188241063,0.67,138.6,138.56,25.91981523]
[1765188242562,0.67,138.6,138.56,25.25981523]
[1765188244670,8.12520422,138.58,138.55,7.21746934]
[1765188244866,8.12520422,138.58,138.54,18.04461418]
[1765188244867,8.12520422,138.57,138.54,7.21784202]
[1765188245061,8.12520422,138.56,138.53,7.21849619]
[1765188245492,8.79520422,138.56,138.53,7.21849619]
[1765188245663,8.79520422,138.55,138.52,7.21895573]
[1765188246053,0.67,138.54,138.52,7.21895573]
[1765188246954,0.67,138.54,138.51,25.26830566]
[1765188247469,0.67,138.54,138.51,25.92830566]
[1765188249073,0.67,138.54,138.51,7.21969532]
[1765188249373,8.79520422,138.54,138.51,7.21969532]
[1765188249675,0.67,138.54,138.51,7.21969532]
[1765188250060,0.67,138.56,138.52,8.78520422]
[1765188250273,0.67,138.55,138.52,8.78520422]
[1765188251062,0.67,138.55,138.53,7.21865299]
[1765188251465,8.79520422,138.55,138.52,7.21895181]
[1765188251657,8.79520422,138.55,138.52,7.2191146]
[1765188251862,8.79520422,138.54,138.51,7.21950557]
[1765188252279,0.67,138.53,138.51,7.21950557]
[1765188252962,0.67,138.55,138.52,7.21891145]
[1765188253366,8.12520422,138.54,138.51,7.21953536]
[1765188253773,8.79520422,138.54,138.51,7.21953536]
[1765188254053,0.67,138.53,138.51,7.21953536]
[1765188255049,0.67,138.56,138.52,0.66]
[1765188255249,0.67,138.55,138.51,0.66]
[1765188255474,8.79520422,138.55,138.5,25.27002271]
[1765188255688,8.79520422,138.55,138.5,25.93002271]
[1765188255890,0.67,138.54,138.5,25.93002271]
[1765188256389,0.67,138.54,138.5,34.05522693]
[1765188256781,0.67,138.54,138.52,7.21917412]
[1765188257455,8.12520422,138.56,138.52,7.21917412]
[1765188257656,0.67,138.58,138.54,8.12520422]
[1765188257862,0.67,138.58,138.55,8.12520422]
[1765188258161,0.67,138.58,138.54,8.78520422]
[1765188259475,0.67,138.58,138.55,7.21761097]
[1765188260591,0.67,138.58,138.55,15.34281519]
[1765188260764,8.79520422,138.58,138.55,7.21761097]
[1765188261685,8.79520422,138.58,138.54,25.26314785]
[1765188261885,0.66,138.57,138.54,25.26314785]
[1765188263284,8.78520422,138.57,138.54,25.26314785]
[1765188263479,0.66,138.57,138.54,25.26314785]
[1765188263677,0.66,138.57,138.54,25.96314785]
[1765188264290,0.66,138.57,138.54,25.26314785]
[1765188265477,16.76520422,138.57,138.54,7.21813194]
[1765188265863,0.66,138.56,138.54,7.21813194]
[1765188266787,0.66,138.56,138.52,18.04722472]
[1765188266788,0.66,138.56,138.52,25.96639884]
[1765188268980,0.66,138.56,138.52,34.09160306]
[1765188269193,8.12520422,138.53,138.49,6.03383681]
[1765188269497,8.12520422,138.53,138.5,7.21990871]
[1765188269694,8.78520422,138.53,138.5,7.21990871]
[1765188269867,8.78520422,138.52,138.49,7.22051809]
[1765188270279,8.78520422,138.52,138.48,18.75241977]
[1765188270280,8.12520422,138.52,138.5,7.2201015]
[1765188270486,0.66,138.51,138.5,7.2201015]
[1765188270864,8.12520422,138.53,138.5,7.2201015]
[1765188271087,0.66,138.52,138.5,7.2201015]
[1765188271387,8.78520422,138.52,138.49,7.22073795]
[1765188271589,8.12520422,138.51,138.48,7.22116078]
[1765188271888,16.76520422,138.51,138.48,7.22116078]
[1765188272573,8.64,138.51,138.48,7.22116078]
[1765188273086,8.64,138.51,138.48,7.92116078]
[1765188275990,8.64,138.51,138.45,27.56633172]
[1765188275991,8.78520422,138.5,138.45,27.56633172]
[1765188276293,8.12520422,138.49,138.47,7.22149707]
[1765188276591,15.19972421,138.51,138.45,7.2225023]
[1765188276592,16.76520422,138.48,138.45,7.2225023]
[1765188276979,0.66,138.47,138.45,7.2225023]
[1765188277189,16.10520422,138.48,138.44,7.22334585]
[1765188277493,16.76520422,138.48,138.44,7.92334585]
[1765188277693,8.64,138.48,138.44,7.92334585]
[1765188278768,8.64,138.48,138.44,7.22334585]
[1765188278969,16.76520422,138.48,138.44,7.92334585]
[1765188279175,15.348306,138.45,138.39,0.7]
[1765188279495,15.348306,138.45,138.38,33.98155699]
[1765188279496,8.12520422,138.42,138.38,22.08761648]
[1765188279796,7.98,138.41,138.38,7.42612183]
[1765188279971,8.64,138.41,138.39,7.22589485]
[1765188281496,7.98,138.41,138.39,7.92589485]
[1765188281699,18.05706031,138.45,138.4,8.82520422]
[1765188281700,7.98,138.45,138.4,8.82520422]
[1765188281877,0.66,138.44,138.41,8.12520422]
[1765188282193,8.66,138.48,138.43,8.12520422]
[1765188282400,0.66,138.47,138.44,8.82520422]
[1765188283298,0.66,138.47,138.45,7.22282412]
[1765188285379,8.12520422,138.5,138.46,8.82520422]
[1765188285380,0.66,138.5,138.46,8.82520422]
[1765188285598,8.0,138.49,138.47,8.12520422]
[1765188286091,0.66,138.48,138.45,8.12520422]
[1765188286294,8.66,138.49,138.45,8.82520422]
[1765188286501,8.66,138.49,138.46,8.12520422]
[1765188286679,8.66,138.49,138.46,8.82520422]
[1765188286877,8.66,138.49,138.46,16.04709606]
[1765188287487,8.66,138.49,138.46,15.34709606]
[1765188287798,8.66,138.49,138.46,16.04709606]
[1765188287970,113.46,138.51,138.48,8.12520422]
[1765188288173,113.46,138.51,138.47,8.82520422]
[1765188288174,0.66,138.5,138.47,8.82520422]
[1765188288594,0.66,138.5,138.46,33.40285223]
[1765188288900,7.22073795,138.49,138.45,7.22265643]
[1765188289102,8.0,138.48,138.45,7.22265643]
[1765188289306,8.66,138.48,138.45,7.22265643]
[1765188289601,0.66,138.47,138.45,7.22265643]
[1765188290399,0.66,138.47,138.43,7.22368489]
[1765188290400,7.88191487,138.47,138.43,7.22368489]
[1765188290588,120.80711909,138.47,138.43,7.22368489]
[1765188290896,8.12520422,138.45,138.4,18.06298277]
[1765188291101,8.12520422,138.43,138.38,0.2]
[1765188291280,8.84520422,138.42,138.38,0.2]
[1765188291677,8.84520422,138.42,138.38,0.87]
[1765188292091,8.72,138.41,138.38,0.2]
[1765188293100,8.72,138.41,138.38,7.42634108]
[1765188295205,8.72,138.41,138.38,8.09634108]
[1765188296008,8.72,138.41,138.38,7.42634108]
[1765188296211,8.0,138.41,138.38,16.2215453]
[1765188296809,8.72,138.41,138.38,16.2215453]
[1765188297105,8.72,138.41,138.38,15.5515453]
[1765188297302,8.72,138.41,138.39,8.79520422]
[1765188297303,8.0,138.41,138.39,8.79520422]
[1765188298711,8.0,138.41,138.4,7.22543352]
[1765188299077,8.68,138.41,138.4,7.22543352]
[1765188299905,8.68,138.41,138.38,18.26619453]
[1765188300109,8.68,138.41,138.39,7.22578183]
[1765188300406,8.68,138.41,138.38,7.42630212]
[1765188300407,0.68,138.4,138.38,7.42630212]
[1765188300714,8.0,138.41,138.38,7.42630212]
[1765188300910,0.68,138.4,138.38,7.42630212]
[1765188301501,8.0,138.41,138.38,26.19249665]
[1765188301698,8.68,138.41,138.38,25.49249665]
[1765188301896,8.0,138.41,138.38,25.49249665]
[1765188302106,0.68,138.4,138.38,25.49249665]
[1765188302301,0.68,138.4,138.38,7.42630212]
[1765188303300,0.68,138.4,138.38,0.2]
[1765188304288,0.68,138.4,138.38,7.42642105]
[1765188304693,0.68,138.44,138.39,5.38054476]
[1765188305004,0.68,138.49,138.43,4.68054476]
[1765188305317,0.68,138.49,138.45,4.68054476]
[1765188305708,0.68,138.49,138.45,5.38054476]
[1765188305895,0.68,138.49,138.46,7.22230247]
[1765188306093,7.90077015,138.49,138.45,12.60312942]
[1765188306490,0.68,138.53,138.48,4.68054476]
[1765188306889,0.68,138.53,138.48,5.38054476]
[1765188307300,0.68,138.53,138.49,0.7]
[1765188307700,7.89886212,138.53,138.49,12.60127844]
[1765188307896,8.68,138.55,138.51,4.68054476]
[1765188308100,15.89761899,138.55,138.51,4.68054476]
[1765188308512,8.0,138.55,138.52,0.7]
[1765188308703,15.89761379,138.55,138.51,4.68054476]
[1765188308902,15.89761379,138.55,138.51,5.38054476]
[1765188309109,15.89761379,138.55,138.51,0.7]
[1765188310013,15.89761379,138.55,138.51,12.59998588]
[1765188310211,15.89761379,138.55,138.51,7.91944112]
[1765188310608,15.89761379,138.55,138.51,7.91969392]
[1765188311642,0.68,138.58,138.54,4.68054476]
[1765188312205,7.89625002,138.58,138.54,5.38054476]
[1765188312723,0.68,138.57,138.53,11.89886512]
[1765188312898,0.68,138.57,138.53,12.59886512]
[1765188313098,7.21625002,138.58,138.53,11.89886512]
[1765188313297,7.89625002,138.58,138.54,5.38054476]
[1765188313706,0.68,138.57,138.54,5.38054476]
[1765188313901,8.0,138.59,138.55,5.38054476]
[1765188314108,15.8955995,138.59,138.55,12.59813709]
[1765188314302,15.8955995,138.59,138.55,7.91759233]
[1765188314518,0.68,138.58,138.55,7.91759233]
[1765188315221,15.8955995,138.59,138.55,7.91759233]
[1765188315421,0.68,138.58,138.55,7.91759233]
[1765188315616,7.89617114,138.58,138.54,7.21797925]
[1765188315924,7.89617114,138.58,138.55,0.7]
[1765188316319,0.68,138.58,138.55,0.7]
[1765188317021,0.68,138.58,138.54,7.21797925]
[1765188317225,20.98940876,138.55,138.47,0.7]
[1765188317409,8.0,138.54,138.49,7.22057999]
[1765188317608,139.54649228,138.58,138.47,18.75364465]
[1765188317609,7.89716677,138.56,138.52,11.89971888]
[1765188317826,12.68054476,138.55,138.5,12.60056793]
[1765188318027,0.68,138.54,138.5,12.60056793]
[1765188318225,0.68,138.54,138.51,7.91969355]
[1765188318425,0.68,138.54,138.51,7.21969355]
[1765188319129,4.68054476,138.53,138.48,0.7]
[1765188319332,4.68054476,138.53,138.48,7.92113425]
[1765188319644,20.57995228,138.52,138.48,7.22113425]
[1765188320137,0.68,138.51,138.48,7.22113425]
[1765188320558,0.68,138.51,138.48,7.92113425]
[1765188320936,15.91940752,138.52,138.48,7.92113425]
[1765188321226,0.7,138.51,138.48,7.22113425]
[1765188321431,0.7,138.51,138.48,7.88113425]
[1765188322317,8.0,138.54,138.49,0.66]
[1765188322521,200.75138983,138.57,138.49,0.66]
[1765188322522,7.91660873,138.57,138.51,4.68054476]
[1765188322721,8.7,138.56,138.51,4.68054476]
[1765188322920,8.7,138.56,138.51,5.34054476]
[1765188323120,8.7,138.56,138.52,0.66]
[1765188323732,15.21726287,138.56,138.52,7.8791094]
[1765188323935,0.7,138.55,138.52,7.2191094]
[1765188324137,4.68054476,138.54,138.48,0.66]
[1765188324437,0.7,138.55,138.48,0.66]
[1765188324438,13.38054476,138.53,138.48,0.66]
[1765188324624,0.7,138.52,138.48,0.66]
[1765188324823,5.38054476,138.52,138.48,7.2211439]
[1765188325019,8.0,138.55,138.49,5.34054476]
[1765188325213,8.0,138.55,138.52,7.21904715]
[1765188325741,8.0,138.55,138.53,0.66]
[1765188326917,8.7,138.55,138.51,25.92893364]
[1765188327533,8.7,138.55,138.52,0.66]
[1765188327534,8.0,138.55,138.52,0.66]
[1765188327738,8.0,138.55,138.53,7.21865299]
[1765188327927,0.7,138.57,138.53,7.21865299]
[1765188328115,0.7,138.57,138.53,7.87865299]
[1765188330138,4.68054476,138.56,138.52,7.21892616]
[1765188330443,0.7,138.6,138.54,13.49048968]
[1765188330625,4.68054476,138.61,138.54,13.49048968]
[1765188330626,15.91396623,138.62,138.56,4.68054476]
[1765188330830,15.91396623,138.62,138.56,5.34054476]
[1765188331031,15.21396623,138.62,138.56,5.34054476]
[1765188331348,5.38054476,138.61,138.56,0.66]
[1765188331531,5.38054476,138.61,138.56,7.21702297]
[1765188331532,7.21500721,138.6,138.56,7.21702297]
[1765188331836,30.63307,138.6,138.55,7.21720887]
[1765188332040,8.0,138.59,138.55,7.87720887]
[1765188332245,8.7,138.59,138.55,7.87720887]
[1765188332457,8.7,138.59,138.56,0.66]
[1765188332742,8.7,138.59,138.56,7.21703114]
[1765188333543,8.7,138.59,138.53,0.66]
[1765188333544,0.7,138.58,138.53,0.66]
[1765188333718,5.38054476,138.58,138.53,0.66]
[1765188334120,5.38054476,138.57,138.51,39.03819933]
[1765188334319,5.38054476,138.57,138.53,0.66]
[1765188334736,0.7,138.57,138.53,7.87832161]
[1765188335723,12.59716379,138.57,138.52,7.21897441]
[1765188335927,12.68054476,138.56,138.52,7.21902563]
[1765188336243,8.7,138.56,138.52,7.87902563]
[1765188336420,8.0,138.56,138.52,7.87902563]
[1765188336622,0.7,138.55,138.52,7.87902563]
[1765188338446,8.0,138.56,138.53,0.66]
[1765188338653,8.7,138.56,138.53,0.66]
[1765188339161,8.7,138.56,138.52,11.89957039]
[1765188339326,8.7,138.56,138.52,12.55957039]
[1765188339755,8.7,138.56,138.52,30.6075057]
[1765188341451,8.7,138.56,138.52,25.92696094]
[1765188341761,104.8,138.58,138.54,4.68054476]
[1765188341927,104.8,138.58,138.53,5.34054476]
[1765188342243,112.01617111,138.58,138.53,0.66]
[1765188342452,0.7,138.57,138.53,0.66]
[1765188342646,104.8,138.58,138.55,7.21761097]
[1765188342829,105.5,138.58,138.55,7.21761097]
[1765188343243,0.7,138.57,138.54,7.87792834]
[1765188343753,104.8,138.58,138.55,0.66]
[1765188344838,104.8,138.58,138.56,7.21709006]
[1765188345361,104.8,138.58,138.56,7.87709006]
[1765188346749,104.8,138.58,138.55,25.26163839]
[1765188346933,8.0,138.6,138.55,30.60218315]
[1765188347133,8.0,138.6,138.56,5.34054476]
[1765188347534,8.0,138.6,138.57,0.66]
[1765188348131,8.0,138.6,138.58,7.21604849]
[1765188348354,8.7,138.6,138.58,7.21604849]
[1765188350461,6.03383681,138.67,138.58,7.21604849]
[1765188350462,0.78,138.66,138.59,22.19048968]
[1765188350660,0.78,138.66,138.61,4.68054476]
[1765188351160,0.78,138.66,138.62,5.40054476]
[1765188351545,0.78,138.66,138.63,7.21344586]
[1765188352356,0.1,138.66,138.64,0.72]
[1765188353459,0.1,138.66,138.65,7.21240533]
[1765188354336,0.1,138.66,138.64,7.21271238]
[1765188354957,0.1,138.66,138.65,0.72]
[1765188355644,0.1,138.66,138.65,7.93240533]
[1765188361149,0.1,138.66,138.64,7.21273436]
[1765188361349,0.1,138.66,138.6,0.72]
[1765188361350,0.76,138.66,138.6,0.72]
[1765188361544,0.76,138.66,138.6,7.21488378]
[1765188361545,7.21292556,138.64,138.6,7.21488378]
[1765188361768,7.21292556,138.64,138.59,7.98]
[1765188361769,8.11454469,138.63,138.59,7.21542656]
[1765188361978,8.77454469,138.63,138.59,7.93542656]
[1765188362392,0.66,138.62,138.59,7.93542656]
[1765188362686,0.66,138.62,138.59,7.21542656]
[1765188362971,0.1,138.66,138.6,7.93488091]
[1765188363156,0.1,138.66,138.61,8.80994492]
[1765188363359,0.1,138.66,138.62,8.83454469]
[1765188363561,0.1,138.66,138.64,7.21292556]
[1765188363950,0.1,138.66,138.64,7.93292556]
[1765188365270,0.81,138.66,138.63,7.21324788]
[1765188365479,0.81,138.66,138.64,7.2129121]
[1765188366566,0.81,138.66,138.63,7.21344586]
[1765188366774,8.11454469,138.64,138.59,7.21523909]
[1765188366981,8.11454469,138.62,138.59,7.21523909]
[1765188367273,8.11454469,138.62,138.53,8.24053227]
[1765188367274,8.11454469,138.6,138.54,0.72]
[1765188367681,0.71,138.59,138.55,7.21761097]
[1765188367875,24.288864,138.62,138.56,8.11454469]
[1765188367876,8.69,138.62,138.56,8.11454469]
[1765188368181,8.69,138.62,138.56,8.83454469]
[1765188368674,7.98,138.62,138.57,7.93656924]
[1765188368880,0.71,138.61,138.57,7.93656924]
[1765188369255,7.98,138.62,138.58,0.72]
[1765188370081,8.69,138.62,138.58,0.72]
[1765188370789,8.69,138.62,138.59,7.21552781]
[1765188372872,8.69,138.62,138.57,18.0414231]
[1765188372873,8.82454469,138.61,138.57,7.21614029]
[1765188373288,0.71,138.6,138.57,7.21614029]
[1765188373989,0.71,138.6,138.58,7.2159578]
[1765188374681,7.98,138.62,138.58,0.72]
[1765188374877,8.69,138.62,138.58,0.72]
[1765188376902,7.98,138.62,138.56,26.15663223]
[1765188377205,0.71,138.61,138.58,7.21588213]
[1765188377995,0.71,138.61,138.58,7.93588213]
[1765188378403,0.71,138.61,138.58,25.97600335]
[1765188378922,0.71,138.61,138.58,18.04012122]
[1765188379689,0.71,138.61,138.58,18.76012122]
[1765188379988,0.71,138.61,138.58,18.04012122]
[1765188380811,0.71,138.61,138.58,18.76012122]
[1765188381010,0.71,138.61,138.58,25.97616971]
[1765188381516,0.71,138.61,138.58,7.21604849]
[1765188382009,8.11454469,138.6,138.56,7.21669227]
[1765188382506,0.65,138.59,138.57,7.21655878]
[1765188383104,0.65,138.59,138.56,7.21709006]
[1765188385000,0.65,138.59,138.56,7.88709006]
[1765188385184,0.65,138.59,138.55,7.21761097]
[1765188385385,0.65,138.59,138.55,25.93163839]
[1765188385689,0.65,138.59,138.56,0.67]
[1765188387314,0.65,138.59,138.57,7.21656924]
[1765188387888,0.65,138.59,138.56,7.88697125]
[1765188390425,0.65,138.64,138.58,8.11454469]
[1765188390620,0.1,138.66,138.6,8.11454469]
[1765188390621,0.65,138.65,138.6,8.11454469]
[1765188390828,8.55,138.65,138.59,17.59448961]
[1765188391192,0.65,138.64,138.59,17.59448961]
[1765188391500,0.65,138.64,138.6,7.21500721]
[1765188391696,0.65,138.64,138.6,7.88500721]
[1765188391899,0.65,138.64,138.6,15.9995519]
[1765188392102,7.86304421,138.64,138.6,15.9995519]
[1765188392603,0.65,138.64,138.6,15.9995519]
[1765188393617,0.65,138.64,138.6,7.88500721]
[1765188394932,8.65,138.66,138.62,8.11454469]
[1765188395123,0.65,138.65,138.62,8.11454469]
[1765188395660,0.65,138.65,138.61,8.78454469]
[1765188395837,7.86243094,138.65,138.62,7.21396623]
[1765188396000,0.65,138.65,138.62,7.21396623]
[1765188397037,0.65,138.65,138.62,25.91888182]
[1765188397209,0.65,138.65,138.62,34.03342651]
[1765188397628,0.65,138.65,138.62,33.36342651]
[1765188397935,0.65,138.65,138.62,25.24888182]
[1765188398722,0.65,138.65,138.62,7.21396623]
[1765188399610,7.86247469,138.65,138.62,7.21396623]
[1765188400106,7.86247469,138.65,138.6,26.82198765]
[1765188400107,0.65,138.64,138.61,7.21448668]
[1765188400502,0.65,138.64,138.61,7.88448668]
[1765188404915,0.65,138.64,138.61,15.99903137]
[1765188405718,104.9,138.66,138.63,8.11454469]
[1765188405929,104.9,138.66,138.63,8.78454469]
[1765188406230,104.9,138.66,138.64,0.67]
[1765188406809,104.9,138.66,138.64,7.88267375]
[1765188407227,0.1,138.66,138.64,15.99721844]
[1765188407433,0.1,138.66,138.64,7.88267375]
[1765188408237,0.1,138.66,138.65,0.67]
[1765188408428,0.1,138.66,138.64,15.99721844]
[1765188408941,0.1,138.66,138.64,7.88267375]
[1765188410338,0.1,138.66,138.64,15.99721844]
[1765188413017,0.1,138.66,138.65,0.68]
[1765188413345,0.1,138.66,138.65,17.60448961]
[1765188413527,0.1,138.66,138.65,9.48994492]
[1765188414028,0.1,138.66,138.65,16.70235025]
[1765188414754,0.1,138.66,138.65,16.02235025]
[1765188414937,0.1,138.66,138.65,16.70235025]
[1765188415137,0.1,138.66,138.65,7.21240533]
[1765188415339,0.1,138.66,138.65,7.89240533]
[1765188416143,0.1,138.66,138.65,24.81689494]
[1765188420661,0.1,138.66,138.65,21.36215038]
[1765188421231,0.1,138.66,138.65,29.26215038]
[1765188421943,8.0,138.71,138.65,29.26215038]
[1765188421944,0.1,138.71,138.7,8.80994492]
[1765188422133,0.1,138.71,138.7,14.12974505]
[1765188422760,0.1,138.72,138.7,22.02974505]
[1765188422935,0.1,138.72,138.71,8.80994492]
[1765188423133,0.1,138.72,138.71,14.12974505]
[1765188423365,0.1,138.72,138.71,21.3390306]
[1765188424857,0.1,138.72,138.71,18.54140135]
[1765188425760,0.1,138.72,138.71,26.44140135]
[1765188427035,0.1,138.72,138.71,24.57923047]
[1765188427242,0.1,138.72,138.71,16.67923047]
[1765188427443,0.81,138.72,138.7,7.20961898]
[1765188427747,0.81,138.72,138.69,25.23493611]
[1765188428370,0.81,138.72,138.69,25.89493611]
[1765188430458,0.81,138.72,138.69,7.21032518]
[1765188430663,4.65811273,138.71,138.67,7.21090562]
[1765188431171,0.71,138.7,138.67,7.21090562]
[1765188431361,5.36811273,138.7,138.67,7.21090562]
[1765188431757,0.71,138.69,138.67,7.21090562]
[1765188431962,5.36811273,138.69,138.66,7.21187669]
[1765188432149,4.65811273,138.67,138.62,7.21387113]
[1765188432458,4.65811273,138.65,138.62,7.21364913]
[1765188432761,33.84802285,138.68,138.63,11.87151146]
[1765188432762,0.71,138.67,138.63,11.87151146]
[1765188432964,0.71,138.67,138.64,4.65811273]
[1765188433260,0.71,138.67,138.63,25.90701338]
[1765188433467,0.71,138.67,138.63,30.56512611]
[1765188434566,7.9,138.68,138.64,14.12805765]
[1765188434755,0.71,138.7,138.65,4.65811273]
[1765188434956,7.9,138.71,138.66,4.65811273]
[1765188435147,4.65811273,138.67,138.63,25.24701338]
[1765188435547,0.71,138.66,138.63,25.24701338]
[1765188435744,7.30895827,138.72,138.64,13.46805765]
[1765188435943,0.71,138.71,138.67,4.65811273]
[1765188436365,0.71,138.71,138.67,5.31811273]
[1765188436671,0.1,138.72,138.69,4.65811273]
[1765188436844,0.1,138.72,138.7,4.65811273]
[1765188437046,0.71,138.71,138.68,29.89607061]
[1765188437245,0.71,138.71,138.68,25.23795788]
[1765188437962,0.1,138.72,138.68,25.23795788]
[1765188438163,0.1,138.72,138.71,4.65811273]
[1765188438367,0.1,138.72,138.71,14.12805765]
[1765188438757,0.1,138.72,138.7,7.20961301]
[1765188438956,0.81,138.72,138.7,7.20961301]
[1765188440055,0.81,138.72,138.71,7.20928555]
[1765188440455,0.1,138.72,138.71,12.52739828]
[1765188444667,0.77,138.72,138.71,7.20928555]
[1765188444883,0.1,138.72,138.71,7.20928555]
[1765188445554,0.1,138.72,138.7,7.20969071]
[1765188445555,0.77,138.72,138.7,7.20969071]
[1765188445767,0.77,138.72,138.69,7.21016688]
[1765188446371,0.77,138.72,138.67,22.68592442]
[1765188446688,5.42811273,138.72,138.67,18.02781169]
[1765188447054,0.67,138.71,138.67,25.2391768]
[1765188448074,0.67,138.71,138.67,30.55728953]
[1765188448278,0.67,138.71,138.67,25.2391768]
[1765188449577,0.1,138.72,138.68,14.12805765]
[1765188449782,0.1,138.72,138.7,4.65811273]
[1765188449977,0.1,138.72,138.69,4.65811273]
[1765188450179,0.77,138.72,138.68,8.80994492]
[1765188450365,0.77,138.72,138.69,5.31811273]
[1765188451259,0.1,138.72,138.7,7.20980533]
[1765188451459,0.1,138.72,138.7,11.86791806]
[1765188451661,0.1,138.72,138.71,14.12805765]
[1765188452588,0.1,138.72,138.71,8.80994492]
[1765188452765,0.1,138.72,138.71,14.12805765]
[1765188453991,0.1,138.72,138.71,21.3373432]
[1765188454803,0.77,138.72,138.71,7.20928555]
[1765188455663,2.633271,138.72,138.67,34.33671558]
[1765188456205,2.533271,138.71,138.68,7.21084511]
[1765188456362,1.863271,138.7,138.68,7.21084511]
[1765188456565,0.67,138.69,138.68,7.21084511]
[1765188456976,0.67,138.69,138.65,18.03042574]
[1765188456977,0.67,138.69,138.67,7.21119001]
[1765188457179,4.66107029,138.68,138.66,7.21150984]
[1765188457385,4.66107029,138.67,138.65,7.21217564]
[1765188457685,0.67,138.69,138.63,18.03294284]
[1765188457686,4.66107029,138.66,138.63,7.21344586]
[1765188457980,4.66107029,138.66,138.61,18.0355146]
[1765188457981,4.66107029,138.66,138.61,25.25000128]
[1765188458199,0.67,138.65,138.61,30.57107157]
[1765188458983,12.56107029,138.69,138.64,4.66107029]
[1765188459186,0.67,138.68,138.64,5.32107029]
[1765188459382,5.33107029,138.68,138.63,4.66107029]
[1765188459993,0.67,138.67,138.63,5.32107029]
[1765188460162,0.67,138.67,138.64,7.21292556]
[1765188461267,0.67,138.67,138.64,25.24523946]
[1765188461471,7.9,138.69,138.65,13.47101521]
[1765188461781,0.67,138.68,138.65,8.80994492]
[1765188462167,0.67,138.68,138.66,7.21188518]
[1765188463377,0.67,138.68,138.65,25.24341867]
[1765188463567,0.67,138.68,138.65,7.21240533]
[1765188463970,18.12270088,138.72,138.66,0.66]
[1765188463971,0.67,138.7,138.66,0.66]
[1765188464182,0.67,138.7,138.65,11.87347562]
[1765188464369,5.33107029,138.7,138.65,11.87347562]
[1765188464777,0.67,138.69,138.65,11.87347562]
[1765188464988,0.67,138.69,138.65,7.21240533]
[1765188465191,0.67,138.69,138.65,25.24341867]
[1765188465396,5.33107029,138.69,138.65,7.21240533]
[1765188465891,0.67,138.68,138.65,7.21240533]
[1765188466374,5.33107029,138.68,138.64,7.21274214]
[1765188466577,4.66107029,138.67,138.64,7.21274214]
[1765188466899,0.67,138.66,138.64,7.21274214]
[1765188467194,0.67,138.66,138.63,25.24646557]
[1765188472994,0.67,138.66,138.63,7.21344586]
[1765188472995,5.33107029,138.66,138.63,7.21344586]
[1765188473384,0.71,138.65,138.63,7.21344586]
[1765188473823,5.37107029,138.65,138.6,0.71]
[1765188473985,5.37107029,138.65,138.61,7.21419235]
[1765188474294,0.71,138.64,138.61,7.21419235]
[1765188474479,5.37107029,138.64,138.61,7.21419235]
[1765188474998,0.71,138.63,138.6,7.21500721]
[1765188475374,5.37107029,138.63,138.6,7.21500721]
[1765188475784,0.71,138.62,138.6,7.21500721]